[Event "Early-Titled-Tuesday-Blitz-May-07-2024"]
[Site "Chess.com"]
[Date "2024.05.07"]
[Round "4"]
[White "youngKID"]
[Black "Tonychess32"]
[Result "1-0"]
[WhiteElo "2829"]
[BlackElo "2493"]
[TimeControl "180+1"]
[EndTime "8:40:27 PDT"]
[Termination "youngKID won by resignation"]

1. d4 {[%clk 0:03:00.9]} 1... Nf6 {[%clk 0:02:59.3]} 2. Nf3 {[%clk 0:03:01.3]}
2... e6 {[%clk 0:02:59.3]} 3. Bf4 {[%clk 0:03:00.9]} 3... b6 {[%clk 0:02:57.5]}
4. Nbd2 {[%clk 0:03:00.4]} 4... Bb7 {[%clk 0:02:57.9]} 5. e3 {[%clk 0:03:01.1]}
5... Be7 {[%clk 0:02:57.2]} 6. Bd3 {[%clk 0:03:01.6]} 6... d5 {[%clk 0:02:55.5]}
7. O-O {[%clk 0:03:01.9]} 7... O-O {[%clk 0:02:55.5]} 8. c4 {[%clk 0:03:02.2]}
8... c5 {[%clk 0:02:54.5]} 9. Bg3 {[%clk 0:02:59.7]} 9... cxd4 {[%clk
0:02:53.8]} 10. Nxd4 {[%clk 0:03:00.6]} 10... Nc6 {[%clk 0:02:54]} 11. Nxc6
{[%clk 0:02:59]} 11... Bxc6 {[%clk 0:02:54.9]} 12. Rc1 {[%clk 0:02:59.5]} 12...
Rc8 {[%clk 0:02:53.5]} 13. Qe2 {[%clk 0:02:57.8]} 13... Qd7 {[%clk 0:02:42.3]}
14. Rfd1 {[%clk 0:02:57.3]} 14... Rfd8 {[%clk 0:02:27.9]} 15. Nf3 {[%clk
0:02:37.2]} 15... Qe8 {[%clk 0:02:27]} 16. Ne5 {[%clk 0:02:36.9]} 16... Bb7
{[%clk 0:02:16.4]} 17. cxd5 {[%clk 0:02:27.6]} 17... Rxc1 {[%clk 0:02:06]} 18.
Rxc1 {[%clk 0:02:28.5]} 18... Nxd5 {[%clk 0:01:54.8]} 19. Bb5 {[%clk 0:02:24.1]}
19... Qf8 {[%clk 0:01:53.1]} 20. Nd7 {[%clk 0:02:24.2]} 20... Rxd7 {[%clk
0:01:43]} 21. Bxd7 {[%clk 0:02:25.1]} 21... Qd8 {[%clk 0:01:33.5]} 22. Bc6
{[%clk 0:02:13.1]} 22... Qc8 {[%clk 0:01:13.8]} 23. Qc4 {[%clk 0:02:11]} 23...
Bxc6 {[%clk 0:00:29.7]} 24. Qxc6 {[%clk 0:02:11.9]} 24... Qxc6 {[%clk
0:00:29.4]} 25. Rxc6 {[%clk 0:02:11.6]} 25... f5 {[%clk 0:00:18.8]} 26. Rxe6
{[%clk 0:02:05]} 26... Bf6 {[%clk 0:00:19.1]} 27. b3 {[%clk 0:02:01.2]} 27...
Nb4 {[%clk 0:00:16.7]} 28. a4 {[%clk 0:01:59.3]} 28... Kf7 {[%clk 0:00:15.6]}
29. Rd6 {[%clk 0:01:58.6]} 29... Be7 {[%clk 0:00:14.2]} 30. Rd7 {[%clk
0:01:58.6]} 30... Nc6 {[%clk 0:00:13.9]} 31. Rc7 {[%clk 0:01:58.2]} 31... Na5
{[%clk 0:00:14.2]} 32. Bd6 {[%clk 0:01:58.2]} 1-0

[Event "Early-Titled-Tuesday-Blitz-May-07-2024"]
[Site "Chess.com"]
[Date "2024.05.07"]
[Round "4"]
[White "talaicito"]
[Black "chess_blitz00"]
[Result "0-1"]
[WhiteElo "2372"]
[BlackElo "2547"]
[TimeControl "180+1"]
[EndTime "8:40:32 PDT"]
[Termination "chess_blitz00 won on time"]

1. d4 {[%clk 0:03:00.9]} 1... d6 {[%clk 0:03:00.7]} 2. e4 {[%clk 0:02:56.6]}
2... Nf6 {[%clk 0:03:00.3]} 3. Nc3 {[%clk 0:02:57]} 3... c6 {[%clk 0:03:01]} 4.
Bf4 {[%clk 0:02:47.1]} 4... Qa5 {[%clk 0:03:00.3]} 5. Qd2 {[%clk 0:02:47.2]}
5... e5 {[%clk 0:02:56.1]} 6. Be3 {[%clk 0:02:44.5]} 6... Ng4 {[%clk 0:02:53.9]}
7. Nf3 {[%clk 0:02:43.3]} 7... Nxe3 {[%clk 0:02:54]} 8. fxe3 {[%clk 0:02:43]}
8... Be7 {[%clk 0:02:53.8]} 9. Bc4 {[%clk 0:02:43.3]} 9... O-O {[%clk
0:02:52.6]} 10. O-O {[%clk 0:02:43.2]} 10... Nd7 {[%clk 0:02:44.9]} 11. a3
{[%clk 0:02:32]} 11... Nf6 {[%clk 0:02:38.5]} 12. b4 {[%clk 0:02:10.2]} 12...
Qc7 {[%clk 0:02:37.9]} 13. Qf2 {[%clk 0:01:50.9]} 13... Be6 {[%clk 0:02:34.6]}
14. Bd3 {[%clk 0:01:22.8]} 14... Ng4 {[%clk 0:02:30.6]} 15. Qd2 {[%clk 0:01:09]}
15... a5 {[%clk 0:02:29.9]} 16. d5 {[%clk 0:00:57.2]} 16... Bd7 {[%clk
0:02:29.8]} 17. h3 {[%clk 0:00:41]} 17... Nf6 {[%clk 0:02:23.5]} 18. Nh4 {[%clk
0:00:41.1]} 18... axb4 {[%clk 0:02:20.4]} 19. axb4 {[%clk 0:00:40]} 19... Nxe4
{[%clk 0:02:10.3]} 20. Bxe4 {[%clk 0:00:34.4]} 20... Bxh4 {[%clk 0:02:10.8]} 21.
Rxa8 {[%clk 0:00:17.5]} 21... Rxa8 {[%clk 0:02:09.6]} 22. Bxh7+ {[%clk
0:00:15.1]} 22... Kxh7 {[%clk 0:02:07]} 23. Rxf7 {[%clk 0:00:15.7]} 23... Kg8
{[%clk 0:02:04.5]} 24. Rf1 {[%clk 0:00:07]} 24... Rf8 {[%clk 0:01:58.9]} 25.
Rxf8+ {[%clk 0:00:05.8]} 25... Kxf8 {[%clk 0:01:59.8]} 26. Qd3 {[%clk
0:00:02.3]} 26... Bf6 {[%clk 0:01:57]} 27. Qh7 {[%clk 0:00:00.5]} 27... Be8
{[%clk 0:01:53.6]} 0-1

[Event "Early-Titled-Tuesday-Blitz-May-07-2024"]
[Site "Chess.com"]
[Date "2024.05.07"]
[Round "4"]
[White "EgorYakovlev"]
[Black "Airquake"]
[Result "0-1"]
[WhiteElo "2574"]
[BlackElo "2817"]
[TimeControl "180+1"]
[EndTime "8:40:39 PDT"]
[Termination "Airquake won by resignation"]

1. e4 {[%clk 0:03:00.9]} 1... c5 {[%clk 0:02:59.7]} 2. Nf3 {[%clk 0:03:00]} 2...
d6 {[%clk 0:02:59.9]} 3. d4 {[%clk 0:02:59.5]} 3... cxd4 {[%clk 0:03:00.8]} 4.
Nxd4 {[%clk 0:03:00]} 4... Nf6 {[%clk 0:03:01.2]} 5. Nc3 {[%clk 0:03:00.6]} 5...
a6 {[%clk 0:03:01.1]} 6. Bg5 {[%clk 0:03:01]} 6... e6 {[%clk 0:02:59.6]} 7. f4
{[%clk 0:03:01.2]} 7... Qb6 {[%clk 0:02:59.9]} 8. Nb3 {[%clk 0:02:37.2]} 8...
Be7 {[%clk 0:02:59.2]} 9. Qd2 {[%clk 0:02:35.7]} 9... Nbd7 {[%clk 0:02:53.3]}
10. Bd3 {[%clk 0:02:32.4]} 10... h6 {[%clk 0:02:53]} 11. Bxf6 {[%clk 0:02:30.3]}
11... Bxf6 {[%clk 0:02:44.7]} 12. O-O-O {[%clk 0:02:30.8]} 12... Qc7 {[%clk
0:02:35.4]} 13. g4 {[%clk 0:02:27.9]} 13... b5 {[%clk 0:02:24.6]} 14. h4 {[%clk
0:02:25.2]} 14... Bxc3 {[%clk 0:02:07.4]} 15. bxc3 {[%clk 0:02:11.7]} 15... Bb7
{[%clk 0:02:01.3]} 16. g5 {[%clk 0:02:11.9]} 16... Rc8 {[%clk 0:01:58.5]} 17.
Kb2 {[%clk 0:02:11]} 17... Nb6 {[%clk 0:01:58.3]} 18. Rde1 {[%clk 0:01:50]}
18... Na4+ {[%clk 0:01:52.4]} 19. Ka1 {[%clk 0:01:50.5]} 19... Qxc3+ {[%clk
0:01:41.1]} 20. Qxc3 {[%clk 0:01:50.3]} 20... Rxc3 {[%clk 0:01:41.3]} 21. f5
{[%clk 0:01:44.7]} 21... Ke7 {[%clk 0:01:29.6]} 22. Rhf1 {[%clk 0:01:37.4]}
22... hxg5 {[%clk 0:01:26.5]} 23. hxg5 {[%clk 0:01:37.1]} 23... Rh2 {[%clk
0:01:25.7]} 24. e5 {[%clk 0:01:29]} 24... Bd5 {[%clk 0:01:07.8]} 25. exd6+
{[%clk 0:01:22.6]} 25... Kxd6 {[%clk 0:01:07.9]} 26. fxe6 {[%clk 0:01:20.8]}
26... fxe6 {[%clk 0:01:07.6]} 27. Rf7 {[%clk 0:01:06]} 27... Rxd3 {[%clk
0:01:04.4]} 28. cxd3 {[%clk 0:00:50]} 28... Bxb3 {[%clk 0:01:02.9]} 29. Ra7
{[%clk 0:00:50.7]} 29... Rxa2+ {[%clk 0:01:00.5]} 0-1

[Event "Early-Titled-Tuesday-Blitz-May-07-2024"]
[Site "Chess.com"]
[Date "2024.05.07"]
[Round "4"]
[White "Blackwhite017"]
[Black "I_am_a_Miracle"]
[Result "1/2-1/2"]
[WhiteElo "2109"]
[BlackElo "2299"]
[TimeControl "180+1"]
[EndTime "8:40:42 PDT"]
[Termination "Game drawn by repetition"]

1. e4 {[%clk 0:03:00]} 1... e5 {[%clk 0:02:59.9]} 2. Nf3 {[%clk 0:02:59.6]} 2...
Nc6 {[%clk 0:02:59.9]} 3. Bb5 {[%clk 0:02:57.2]} 3... a6 {[%clk 0:02:59.7]} 4.
Bxc6 {[%clk 0:02:55.8]} 4... dxc6 {[%clk 0:03:00.6]} 5. O-O {[%clk 0:02:54.6]}
5... f6 {[%clk 0:03:01]} 6. d4 {[%clk 0:02:54]} 6... Bg4 {[%clk 0:02:57.8]} 7.
dxe5 {[%clk 0:02:50.8]} 7... Qxd1 {[%clk 0:02:57.5]} 8. Rxd1 {[%clk 0:02:50.3]}
8... fxe5 {[%clk 0:02:58.2]} 9. Nbd2 {[%clk 0:02:39.8]} 9... Bd6 {[%clk
0:02:55.3]} 10. h3 {[%clk 0:02:38]} 10... Bh5 {[%clk 0:02:54.2]} 11. Nc4 {[%clk
0:02:24.4]} 11... Bxf3 {[%clk 0:02:51.5]} 12. gxf3 {[%clk 0:02:23.5]} 12...
O-O-O {[%clk 0:02:47.9]} 13. Bg5 {[%clk 0:02:04.7]} 13... Nf6 {[%clk 0:02:25.4]}
14. f4 {[%clk 0:01:47.5]} 14... Rde8 {[%clk 0:02:11.2]} 15. Bxf6 {[%clk
0:01:11.5]} 15... gxf6 {[%clk 0:02:10.9]} 16. f5 {[%clk 0:01:08.5]} 16... Bc5
{[%clk 0:02:06.5]} 17. Kg2 {[%clk 0:00:46.5]} 17... Rhg8+ {[%clk 0:01:27.4]} 18.
Kf3 {[%clk 0:00:46.1]} 18... Rg5 {[%clk 0:01:27.7]} 19. Rg1 {[%clk 0:00:45.5]}
19... Reg8 {[%clk 0:01:27.9]} 20. Rxg5 {[%clk 0:00:44]} 20... Rxg5 {[%clk
0:01:27.7]} 21. Rd1 {[%clk 0:00:37.4]} 21... Rh5 {[%clk 0:01:24.3]} 22. Kg4
{[%clk 0:00:24.2]} 22... Rg5+ {[%clk 0:01:24.3]} 23. Kf3 {[%clk 0:00:23.9]}
23... Rh5 {[%clk 0:01:21.8]} 24. Kg4 {[%clk 0:00:23.2]} 24... Rg5+ {[%clk
0:01:22.1]} 25. Kf3 {[%clk 0:00:23.6]} 1/2-1/2

[Event "Early-Titled-Tuesday-Blitz-May-07-2024"]
[Site "Chess.com"]
[Date "2024.05.07"]
[Round "4"]
[White "ValentinDragnev"]
[Black "db-banana"]
[Result "1-0"]
[WhiteElo "2718"]
[BlackElo "2440"]
[TimeControl "180+1"]
[EndTime "8:40:44 PDT"]
[Termination "ValentinDragnev won by resignation"]

1. e4 {[%clk 0:02:56.8]} 1... c5 {[%clk 0:02:55.1]} 2. Nc3 {[%clk 0:02:53.5]}
2... d6 {[%clk 0:02:47.7]} 3. Bb5+ {[%clk 0:02:52.8]} 3... Bd7 {[%clk
0:02:41.9]} 4. Bxd7+ {[%clk 0:02:52.7]} 4... Qxd7 {[%clk 0:02:42.8]} 5. d4
{[%clk 0:02:53.3]} 5... cxd4 {[%clk 0:02:43]} 6. Qxd4 {[%clk 0:02:54.2]} 6...
Nc6 {[%clk 0:02:27.7]} 7. Qd3 {[%clk 0:02:54.7]} 7... e5 {[%clk 0:02:18.9]} 8.
Nf3 {[%clk 0:02:53.6]} 8... Nge7 {[%clk 0:02:19]} 9. Be3 {[%clk 0:02:50.2]} 9...
Ng6 {[%clk 0:02:13.8]} 10. O-O-O {[%clk 0:02:50.3]} 10... Be7 {[%clk 0:02:14.1]}
11. h4 {[%clk 0:02:48.8]} 11... Nf8 {[%clk 0:01:34.9]} 12. h5 {[%clk 0:02:45]}
12... Ne6 {[%clk 0:01:34.7]} 13. h6 {[%clk 0:02:45.2]} 13... g6 {[%clk
0:01:33.7]} 14. Nd5 {[%clk 0:02:45.8]} 14... Nc7 {[%clk 0:01:26.8]} 15. Kb1
{[%clk 0:02:33.8]} 15... Nxd5 {[%clk 0:01:20.1]} 16. Qxd5 {[%clk 0:02:34.7]}
16... Rc8 {[%clk 0:01:09.4]} 17. c3 {[%clk 0:02:32.4]} 17... O-O {[%clk
0:01:04.8]} 18. Nxe5 {[%clk 0:02:30.8]} 18... Qd8 {[%clk 0:00:50]} 19. Nxc6
{[%clk 0:02:17.2]} 19... bxc6 {[%clk 0:00:48.8]} 20. Qd4 {[%clk 0:02:17.3]}
20... Bf6 {[%clk 0:00:48]} 21. Qxd6 {[%clk 0:02:17.5]} 21... Qxd6 {[%clk
0:00:18.7]} 22. Rxd6 {[%clk 0:02:18.4]} 22... Be5 {[%clk 0:00:19]} 23. Rd7
{[%clk 0:02:16.5]} 23... a5 {[%clk 0:00:19.6]} 24. f4 {[%clk 0:02:12.3]} 24...
Bf6 {[%clk 0:00:17.4]} 25. e5 {[%clk 0:02:12.6]} 25... Bd8 {[%clk 0:00:14]} 26.
Rhd1 {[%clk 0:02:01.7]} 26... a4 {[%clk 0:00:13.7]} 27. e6 {[%clk 0:02:01.5]}
27... fxe6 {[%clk 0:00:14.1]} 28. Rg7+ {[%clk 0:01:51.8]} 28... Kh8 {[%clk
0:00:14]} 29. Bd4 {[%clk 0:01:52.7]} 29... Bf6 {[%clk 0:00:13.6]} 30. Bxf6
{[%clk 0:01:53.4]} 30... Rxf6 {[%clk 0:00:14.3]} 31. Rdd7 {[%clk 0:01:54.2]} 1-0

[Event "Early-Titled-Tuesday-Blitz-May-07-2024"]
[Site "Chess.com"]
[Date "2024.05.07"]
[Round "4"]
[White "AsaHoffmann"]
[Black "KChor05"]
[Result "0-1"]
[WhiteElo "2409"]
[BlackElo "2616"]
[TimeControl "180+1"]
[EndTime "8:40:51 PDT"]
[Termination "KChor05 won by resignation"]

1. d4 {[%clk 0:01:19.2]} 1... Nf6 {[%clk 0:02:58.7]} 2. Bg5 {[%clk 0:01:18.4]}
2... Ne4 {[%clk 0:02:58.7]} 3. Bf4 {[%clk 0:01:13.9]} 3... c5 {[%clk 0:02:58]}
4. f3 {[%clk 0:01:13.8]} 4... Qa5+ {[%clk 0:02:57.2]} 5. c3 {[%clk 0:01:13.2]}
5... Nf6 {[%clk 0:02:55.1]} 6. d5 {[%clk 0:01:12.7]} 6... g6 {[%clk 0:02:48.2]}
7. e4 {[%clk 0:01:12.4]} 7... Bg7 {[%clk 0:02:43.1]} 8. Na3 {[%clk 0:01:12.2]}
8... d6 {[%clk 0:02:41.7]} 9. Nc4 {[%clk 0:01:11.7]} 9... Qd8 {[%clk 0:02:42]}
10. a4 {[%clk 0:01:11.4]} 10... O-O {[%clk 0:02:41.7]} 11. Qd2 {[%clk
0:01:11.6]} 11... Nbd7 {[%clk 0:02:38.6]} 12. Bh6 {[%clk 0:01:11.3]} 12... Nb6
{[%clk 0:02:37.7]} 13. Na3 {[%clk 0:01:07.6]} 13... Nxa4 {[%clk 0:02:20.7]} 14.
h4 {[%clk 0:01:06.1]} 14... e6 {[%clk 0:02:19.6]} 15. h5 {[%clk 0:01:05.6]}
15... exd5 {[%clk 0:02:19]} 16. hxg6 {[%clk 0:01:03.8]} 16... fxg6 {[%clk
0:02:19.9]} 17. Bxg7 {[%clk 0:01:03.5]} 17... Kxg7 {[%clk 0:02:20.8]} 18. Qh6+
{[%clk 0:01:02.9]} 18... Kg8 {[%clk 0:02:21.2]} 19. O-O-O {[%clk 0:01:00.3]}
19... d4 {[%clk 0:02:08.7]} 20. Bc4+ {[%clk 0:00:56]} 20... Kh8 {[%clk
0:02:06.2]} 21. Ne2 {[%clk 0:00:55.8]} 21... d5 {[%clk 0:01:59.2]} 22. Nf4
{[%clk 0:00:52.1]} 22... dxc4 {[%clk 0:01:46.4]} 23. Nxg6+ {[%clk 0:00:51.2]}
23... Kg8 {[%clk 0:01:46.9]} 24. Nxf8 {[%clk 0:00:47.1]} 24... Qxf8 {[%clk
0:01:47.8]} 25. Qg5+ {[%clk 0:00:46.1]} 25... Qg7 {[%clk 0:01:46]} 26. Qxg7+
{[%clk 0:00:45.5]} 26... Kxg7 {[%clk 0:01:46.9]} 27. Nxc4 {[%clk 0:00:45.4]}
27... Be6 {[%clk 0:01:38.8]} 28. Nd6 {[%clk 0:00:40.3]} 28... dxc3 {[%clk
0:01:37.7]} 29. bxc3 {[%clk 0:00:38.2]} 29... Nxc3 {[%clk 0:01:38.3]} 30. Rd3
{[%clk 0:00:37.5]} 30... Ne2+ {[%clk 0:01:38.3]} 31. Kd2 {[%clk 0:00:36.3]}
31... Nf4 {[%clk 0:01:39.2]} 32. Rc3 {[%clk 0:00:34.3]} 32... Rd8 {[%clk
0:01:34.5]} 33. e5 {[%clk 0:00:31.7]} 33... Nd7 {[%clk 0:01:35.1]} 34. Ke3
{[%clk 0:00:30.9]} 34... Nd5+ {[%clk 0:01:33.9]} 35. Ke4 {[%clk 0:00:30]} 35...
Nxc3+ {[%clk 0:01:34.8]} 36. Kf4 {[%clk 0:00:29]} 36... Nd5+ {[%clk 0:01:33.1]}
37. Kg5 {[%clk 0:00:27.8]} 37... Nxe5 {[%clk 0:01:32.7]} 0-1

[Event "Early-Titled-Tuesday-Blitz-May-07-2024"]
[Site "Chess.com"]
[Date "2024.05.07"]
[Round "4"]
[White "Abund"]
[Black "yaguigor"]
[Result "0-1"]
[WhiteElo "2750"]
[BlackElo "2571"]
[TimeControl "180+1"]
[EndTime "8:40:55 PDT"]
[Termination "yaguigor won by resignation"]

1. e4 {[%clk 0:03:00.9]} 1... c5 {[%clk 0:02:58.8]} 2. Nf3 {[%clk 0:03:01.1]}
2... Nc6 {[%clk 0:02:58]} 3. Bb5 {[%clk 0:02:59.7]} 3... g6 {[%clk 0:02:57.6]}
4. O-O {[%clk 0:03:00]} 4... Bg7 {[%clk 0:02:57.2]} 5. Re1 {[%clk 0:03:00.7]}
5... Nf6 {[%clk 0:02:56.6]} 6. c3 {[%clk 0:03:00.6]} 6... O-O {[%clk 0:02:56.1]}
7. d4 {[%clk 0:03:01]} 7... d5 {[%clk 0:02:56.3]} 8. e5 {[%clk 0:03:00.7]} 8...
Ne4 {[%clk 0:02:56.8]} 9. Be3 {[%clk 0:02:52.5]} 9... cxd4 {[%clk 0:02:53.8]}
10. cxd4 {[%clk 0:02:51.6]} 10... Qb6 {[%clk 0:02:53.4]} 11. Bxc6 {[%clk
0:02:49.5]} 11... Qxc6 {[%clk 0:02:52.1]} 12. Nfd2 {[%clk 0:02:46.5]} 12... Nxd2
{[%clk 0:02:44.9]} 13. Qxd2 {[%clk 0:02:47.4]} 13... f6 {[%clk 0:02:43.8]} 14.
Nc3 {[%clk 0:02:34]} 14... Be6 {[%clk 0:02:33.8]} 15. Rac1 {[%clk 0:02:31]}
15... Qd7 {[%clk 0:02:32.1]} 16. Bf4 {[%clk 0:02:16.3]} 16... g5 {[%clk
0:02:24.3]} 17. Bg3 {[%clk 0:02:09.3]} 17... Rac8 {[%clk 0:02:23.3]} 18. b3
{[%clk 0:01:56.7]} 18... b6 {[%clk 0:02:18.5]} 19. h3 {[%clk 0:01:50.9]} 19...
h6 {[%clk 0:02:17.1]} 20. exf6 {[%clk 0:01:50.4]} 20... exf6 {[%clk 0:02:16.4]}
21. a4 {[%clk 0:01:44.4]} 21... Rc6 {[%clk 0:02:10.2]} 22. Nb5 {[%clk 0:01:39]}
22... Rfc8 {[%clk 0:02:09.2]} 23. Rxc6 {[%clk 0:01:38]} 23... Rxc6 {[%clk
0:02:09]} 24. Rc1 {[%clk 0:01:37.9]} 24... a6 {[%clk 0:02:05.2]} 25. Nc7 {[%clk
0:01:33.3]} 25... Rxc1+ {[%clk 0:01:40.8]} 26. Qxc1 {[%clk 0:01:34.2]} 26... f5
{[%clk 0:01:41.1]} 27. f4 {[%clk 0:00:44]} 27... Bxd4+ {[%clk 0:01:38.2]} 28.
Kh2 {[%clk 0:00:44.3]} 28... g4 {[%clk 0:01:29.4]} 29. hxg4 {[%clk 0:00:42.4]}
29... fxg4 {[%clk 0:01:28.7]} 30. Nxa6 {[%clk 0:00:36.4]} 30... Qf7 {[%clk
0:01:27]} 31. Nc7 {[%clk 0:00:30.2]} 31... Qh5+ {[%clk 0:01:25.1]} 0-1

[Event "Early-Titled-Tuesday-Blitz-May-07-2024"]
[Site "Chess.com"]
[Date "2024.05.07"]
[Round "4"]
[White "Ryukchess81"]
[Black "Aryan_Tamadon"]
[Result "0-1"]
[WhiteElo "2371"]
[BlackElo "2557"]
[TimeControl "180+1"]
[EndTime "8:40:55 PDT"]
[Termination "Aryan_Tamadon won by resignation"]

1. d4 {[%clk 0:03:00.9]} 1... d6 {[%clk 0:02:52.8]} 2. Bf4 {[%clk 0:03:00.4]}
2... g6 {[%clk 0:02:53.1]} 3. Nf3 {[%clk 0:03:00.8]} 3... Bg7 {[%clk 0:02:53.6]}
4. e3 {[%clk 0:03:01.6]} 4... Nf6 {[%clk 0:02:53.9]} 5. h3 {[%clk 0:03:02.3]}
5... O-O {[%clk 0:02:54.3]} 6. Be2 {[%clk 0:03:03.1]} 6... Bd7 {[%clk
0:02:52.5]} 7. O-O {[%clk 0:03:02.4]} 7... Qc8 {[%clk 0:02:53]} 8. c3 {[%clk
0:03:02.1]} 8... c5 {[%clk 0:02:52]} 9. Nbd2 {[%clk 0:03:01.3]} 9... Na6 {[%clk
0:02:48.4]} 10. Bh2 {[%clk 0:02:56]} 10... b5 {[%clk 0:02:41.7]} 11. a4 {[%clk
0:02:55.6]} 11... b4 {[%clk 0:02:42.1]} 12. Bb5 {[%clk 0:02:47.4]} 12... Rb8
{[%clk 0:02:34.4]} 13. Qe2 {[%clk 0:02:46.4]} 13... Nc7 {[%clk 0:02:25.1]} 14.
Bxd7 {[%clk 0:02:35.2]} 14... Nxd7 {[%clk 0:02:25.7]} 15. dxc5 {[%clk
0:02:25.1]} 15... Nxc5 {[%clk 0:02:26.6]} 16. Nd4 {[%clk 0:02:22]} 16... bxc3
{[%clk 0:02:25.6]} 17. bxc3 {[%clk 0:02:12.4]} 17... Qa6 {[%clk 0:02:16.4]} 18.
Qxa6 {[%clk 0:01:57.9]} 18... N7xa6 {[%clk 0:02:17.3]} 19. Nc6 {[%clk
0:01:54.6]} 19... Rb7 {[%clk 0:02:17.6]} 20. Rab1 {[%clk 0:01:54.4]} 20... Rc7
{[%clk 0:02:17.9]} 21. Nd4 {[%clk 0:01:53]} 21... Nxa4 {[%clk 0:02:16.2]} 22.
Ra1 {[%clk 0:01:50]} 22... N6c5 {[%clk 0:02:11.6]} 23. Nb5 {[%clk 0:01:42.8]}
23... Rb7 {[%clk 0:02:10.8]} 24. Rfb1 {[%clk 0:01:25.9]} 24... Rfb8 {[%clk
0:02:09.3]} 25. Na3 {[%clk 0:01:13.7]} 25... Nxc3 {[%clk 0:01:54.2]} 26. Rxb7
{[%clk 0:01:12.8]} 26... Rxb7 {[%clk 0:01:55.1]} 27. Kf1 {[%clk 0:01:09.3]}
27... Nd3 {[%clk 0:01:09.7]} 28. Nac4 {[%clk 0:01:04.2]} 28... Nxf2 {[%clk
0:01:10.1]} 29. Kxf2 {[%clk 0:00:54.6]} 29... Ne4+ {[%clk 0:01:10.3]} 30. Nxe4
{[%clk 0:00:55.2]} 30... Bxa1 {[%clk 0:01:10.2]} 31. Kf3 {[%clk 0:00:50.7]}
31... d5 {[%clk 0:01:05]} 32. Nc5 {[%clk 0:00:50.3]} 32... Rb5 {[%clk
0:01:03.7]} 0-1

[Event "Early-Titled-Tuesday-Blitz-May-07-2024"]
[Site "Chess.com"]
[Date "2024.05.07"]
[Round "4"]
[White "Elegance_Riks"]
[Black "wild3000"]
[Result "1-0"]
[WhiteElo "2754"]
[BlackElo "2517"]
[TimeControl "180+1"]
[EndTime "8:41:06 PDT"]
[Termination "Elegance_Riks won by resignation"]

1. Nf3 {[%clk 0:03:00.9]} 1... d5 {[%clk 0:02:59.8]} 2. g3 {[%clk 0:03:00.3]}
2... Nf6 {[%clk 0:02:59.8]} 3. Bg2 {[%clk 0:03:00.8]} 3... e6 {[%clk 0:03:00.2]}
4. O-O {[%clk 0:03:01.3]} 4... Be7 {[%clk 0:03:00.1]} 5. c4 {[%clk 0:03:01.6]}
5... O-O {[%clk 0:03:00.6]} 6. b3 {[%clk 0:03:02.2]} 6... c5 {[%clk 0:02:58.8]}
7. Bb2 {[%clk 0:03:02.6]} 7... Nc6 {[%clk 0:02:57.8]} 8. e3 {[%clk 0:03:02.9]}
8... b6 {[%clk 0:02:48.3]} 9. Nc3 {[%clk 0:03:02.8]} 9... Bb7 {[%clk 0:02:47.8]}
10. cxd5 {[%clk 0:02:59.9]} 10... Nxd5 {[%clk 0:02:46.7]} 11. Nxd5 {[%clk
0:03:00]} 11... Qxd5 {[%clk 0:02:40.2]} 12. d4 {[%clk 0:02:59.6]} 12... Na5
{[%clk 0:02:22.9]} 13. dxc5 {[%clk 0:02:53.6]} 13... Qxd1 {[%clk 0:02:19.4]} 14.
Rfxd1 {[%clk 0:02:52.9]} 14... Bxc5 {[%clk 0:02:18]} 15. Ne5 {[%clk 0:02:51.8]}
15... Bxg2 {[%clk 0:02:16.1]} 16. Kxg2 {[%clk 0:02:51.8]} 16... Rfd8 {[%clk
0:02:10.3]} 17. Bc3 {[%clk 0:02:41.2]} 17... Nb7 {[%clk 0:01:52.9]} 18. b4
{[%clk 0:02:31.8]} 18... Bd6 {[%clk 0:01:46.3]} 19. Nc6 {[%clk 0:02:09.7]} 19...
Rdc8 {[%clk 0:01:41.5]} 20. b5 {[%clk 0:02:09.2]} 20... Kf8 {[%clk 0:01:33.4]}
21. a4 {[%clk 0:02:08.6]} 21... f6 {[%clk 0:01:29.9]} 22. Ra2 {[%clk 0:02:05.4]}
22... a6 {[%clk 0:01:27.3]} 23. Rad2 {[%clk 0:02:05.3]} 23... axb5 {[%clk
0:01:17.2]} 24. axb5 {[%clk 0:02:05.2]} 24... Bc5 {[%clk 0:01:08.3]} 25. Rd7
{[%clk 0:02:01.4]} 25... Na5 {[%clk 0:01:03.3]} 26. Nd8 {[%clk 0:01:39]} 26...
Be7 {[%clk 0:00:49]} 27. Nxe6+ {[%clk 0:01:31.7]} 27... Kf7 {[%clk 0:00:49]} 28.
Bb4 {[%clk 0:01:25.8]} 28... Kxe6 {[%clk 0:00:28.6]} 29. Rxe7+ {[%clk
0:01:26.1]} 29... Kf5 {[%clk 0:00:28.8]} 30. Rxg7 {[%clk 0:01:25.6]} 30... Rc4
{[%clk 0:00:24.7]} 31. Bxa5 {[%clk 0:01:18.4]} 31... Rxa5 {[%clk 0:00:24.5]} 32.
Rxh7 {[%clk 0:01:18.8]} 32... Rxb5 {[%clk 0:00:24.4]} 33. Rh5+ {[%clk
0:01:17.7]} 1-0

[Event "Early-Titled-Tuesday-Blitz-May-07-2024"]
[Site "Chess.com"]
[Date "2024.05.07"]
[Round "4"]
[White "CruzWilliam"]
[Black "guillembaches"]
[Result "1/2-1/2"]
[WhiteElo "2404"]
[BlackElo "2573"]
[TimeControl "180+1"]
[EndTime "8:41:07 PDT"]
[Termination "Game drawn by agreement"]

1. d4 {[%clk 0:03:00.1]} 1... e6 {[%clk 0:02:59.9]} 2. e4 {[%clk 0:02:57.8]}
2... d5 {[%clk 0:03:00]} 3. Nd2 {[%clk 0:02:54.2]} 3... c5 {[%clk 0:02:58.7]} 4.
exd5 {[%clk 0:02:53.2]} 4... Qxd5 {[%clk 0:02:58.5]} 5. Ngf3 {[%clk 0:02:46.2]}
5... cxd4 {[%clk 0:02:57.9]} 6. Bc4 {[%clk 0:02:45]} 6... Qd7 {[%clk 0:02:57.6]}
7. O-O {[%clk 0:02:37.2]} 7... Nf6 {[%clk 0:02:56.8]} 8. Re1 {[%clk 0:02:32.2]}
8... Be7 {[%clk 0:02:53.1]} 9. Ne4 {[%clk 0:02:25.7]} 9... Nc6 {[%clk
0:02:47.2]} 10. Bg5 {[%clk 0:02:11.4]} 10... h6 {[%clk 0:02:28.8]} 11. Bxf6
{[%clk 0:02:09.1]} 11... gxf6 {[%clk 0:02:28.5]} 12. Bb5 {[%clk 0:02:04]} 12...
f5 {[%clk 0:02:24.7]} 13. Ng3 {[%clk 0:01:53.1]} 13... Bf6 {[%clk 0:02:22.3]}
14. Nh5 {[%clk 0:01:52.8]} 14... Ke7 {[%clk 0:01:57.5]} 15. Nxf6 {[%clk
0:01:49.8]} 15... Kxf6 {[%clk 0:01:58.4]} 16. Bxc6 {[%clk 0:01:47.1]} 16... bxc6
{[%clk 0:01:57.5]} 17. Qxd4+ {[%clk 0:01:32.1]} 17... Qxd4 {[%clk 0:01:56]} 18.
Nxd4 {[%clk 0:01:33]} 18... c5 {[%clk 0:01:36.5]} 19. Nb3 {[%clk 0:01:27.8]}
19... c4 {[%clk 0:01:36]} 20. Nd2 {[%clk 0:01:27.3]} 20... Ba6 {[%clk
0:01:32.8]} 21. f4 {[%clk 0:01:25.1]} 21... c3 {[%clk 0:01:27.8]} 22. bxc3
{[%clk 0:01:22.6]} 22... Rhc8 {[%clk 0:01:27.6]} 23. Re3 {[%clk 0:01:22.3]}
23... Rc6 {[%clk 0:01:25.4]} 24. Rb1 {[%clk 0:01:05.2]} 24... Rac8 {[%clk
0:01:24.8]} 25. Rb3 {[%clk 0:01:05]} 25... Rd8 {[%clk 0:01:18.7]} 26. Nf3 {[%clk
0:01:02]} 26... Rc4 {[%clk 0:01:03.8]} 27. g3 {[%clk 0:00:59.9]} 27... Ra4
{[%clk 0:01:00.8]} 28. a3 {[%clk 0:00:58.4]} 28... Rd1+ {[%clk 0:00:56]} 29. Re1
{[%clk 0:00:56.8]} 29... Rd6 {[%clk 0:00:44.6]} 30. Kf2 {[%clk 0:00:54.8]} 30...
Rb6 {[%clk 0:00:35.5]} 1/2-1/2